fUSD/lending_fUSD_20250609
["ID","MTS","AMOUNT","RATE_DAILY","PERIOD"]
[365157422,1749502253859,-151.0,0.00019178,2]
[365157423,1749502253869,-151.0,0.00019178,2]
[365157424,1749502253878,-151.0,0.00019178,2]
[365157425,1749502253887,-151.0,0.00019178,2]
[365157426,1749502253897,-151.0,0.00019178,2]
[365157427,1749502253907,-490.0,0.00019178,2]
[365157428,1749502253917,-3006.45,0.00019178,2]
[365157429,1749502253927,-490.0,0.00019178,2]
[365157430,1749502253936,-490.0,0.00019178,2]
[365157431,1749502253947,-490.0,0.00019178,2]
[365157432,1749502253957,-490.0,0.00019178,2]
[365157433,1749502253967,-490.0,0.00019178,2]
[365157434,1749502253977,-151.0,0.00019178,2]
[365157435,1749502253987,-490.0,0.00019178,2]
[365157436,1749502253997,-151.0,0.00019178,2]
[365157437,1749502254007,-151.0,0.00019178,2]
[365157438,1749502254017,-626.32,0.00019178,2]
[365157439,1749502254028,-490.0,0.00019178,2]
[365157440,1749502254037,-787.74,0.00019178,2]
[365157441,1749502254047,-480.0,0.00019178,2]
[365157442,1749502254057,-440.0,0.00019178,2]
[365157443,1749502254067,-151.0,0.00019178,2]
[365157444,1749502254077,-151.0,0.00019178,2]
[365157445,1749502254087,-151.0,0.00019178,2]
[365157446,1749502254097,-490.0,0.00019178,2]
[365157447,1749502254106,-157.359212,0.00019178,2]
[365157448,1749502254116,-490.0,0.00019178,2]
[365157449,1749502254126,-3811.93,0.00019178,2]
[365157450,1749502254136,-230.26211343,0.00019178,2]
[365157451,1749502254146,-969.09,0.00019178,2]
[365157452,1749502254156,-688.13,0.00019178,2]
[365157453,1749502254166,-490.0,0.00019178,2]
[365157454,1749502254176,-636.45,0.00019178,2]
[365157455,1749502254185,-490.0,0.00019178,2]
[365157456,1749502254195,-490.0,0.00019178,2]
[365157457,1749502254205,-490.0,0.00019178,2]
[365157458,1749502254214,-762.11,0.00019178,2]
[365157459,1749502254224,-795.45,0.00019178,2]
[365157460,1749502254234,-480.0,0.00019178,2]
[365157461,1749502254244,-490.0,0.00019178,2]
[365157462,1749502254253,-490.0,0.00019178,2]
[365157463,1749502254263,-490.0,0.00019178,2]
[365157464,1749502254272,-490.0,0.00019178,2]
[365157465,1749502254281,-18643.43,0.00019178,2]
[365157466,1749502254292,-539.56,0.00019178,2]
[365157467,1749502254301,-1220.44,0.00019178,2]
[365157468,1749502254311,-490.0,0.00019178,2]
[365157469,1749502254321,-715.35,0.00019178,2]
[365157470,1749502254330,-490.0,0.00019178,2]
[365157471,1749502254340,-490.0,0.00019178,2]
[365157472,1749502254349,-490.0,0.00019178,2]
[365157473,1749502254359,-823.22,0.00019178,2]
[365157474,1749502254368,-1031.94,0.00019178,2]
[365157475,1749502254378,-490.0,0.00019178,2]
[365157476,1749502254387,-2452.5,0.00019178,2]
[365157477,1749502254399,-490.0,0.00019178,2]
[365157478,1749502254408,-490.0,0.00019178,2]
[365157479,1749502254418,-972.42,0.00019178,2]
[365157480,1749502254427,-671.84,0.00019178,2]
[365157481,1749502254437,-490.0,0.00019178,2]
[365157482,1749502254447,-702.59,0.00019178,2]
[365157483,1749502254457,-1149.41,0.00019178,2]
[365157484,1749502254467,-490.0,0.00019178,2]
[365157485,1749502254476,-490.0,0.00019178,2]
[365157486,1749502254486,-480.0,0.00019178,2]
[365157487,1749502254496,-1032.51,0.00019178,2]
[365157488,1749502254505,-644.65,0.00019178,2]
[365157489,1749502254517,-1000.0,0.00019178,2]
[365157490,1749502254527,-1281.74,0.00019178,2]
[365157491,1749502254537,-490.0,0.00019178,2]
[365157492,1749502254546,-161.678678,0.00019178,2]
[365157493,1749502254557,-213.497001,0.00019178,2]
[365157494,1749502254567,-161.678678,0.00019178,2]
[365157495,1749502254576,-1061.74,0.00019178,2]
[365157496,1749502254587,-213.497001,0.00019178,2]
[365157497,1749502254596,-490.0,0.00019178,2]
[365157498,1749502254607,-161.678678,0.00019178,2]
[365157499,1749502254616,-1096.56,0.00019178,2]
[365157500,1749502254626,-213.497001,0.00019178,2]
[365157501,1749502254635,-161.678678,0.00019178,2]
[365157502,1749502254644,-213.497001,0.00019178,2]
[365157503,1749502254654,-213.497001,0.00019178,2]
[365157504,1749502254663,-161.678678,0.00019178,2]
[365157505,1749502254673,-161.678678,0.00019178,2]
[365157506,1749502254683,-490.0,0.00019178,2]
[365157507,1749502254692,-161.678678,0.00019178,2]
[365157508,1749502254702,-499.04,0.00019178,2]
[365157509,1749502254712,-2422.68,0.00019178,2]
[365157510,1749502254722,-1086.77,0.00019178,2]
[365157511,1749502254731,-480.0,0.00019178,2]
[365157512,1749502254740,-213.497001,0.00019178,2]
[365157513,1749502254751,-710.52,0.00019178,2]
[365157514,1749502254760,-213.497001,0.00019178,2]
[365157515,1749502254770,-161.678678,0.00019178,2]
[365157516,1749502254780,-643.19,0.00019178,2]
[365157517,1749502254790,-213.497001,0.00019178,2]
[365157518,1749502254799,-199.20368709,0.00019178,2]
[365157519,1749502254820,-14.29331391,0.00019178,2]
[365157520,1749502254830,-161.678678,0.00019178,2]
[365157521,1749502254840,-213.497001,0.00019178,2]
[365157522,1749502254850,-161.678678,0.00019178,2]
[365157523,1749502254859,-175.633844,0.00019178,2]
[365157524,1749502254869,-161.678678,0.00019178,2]
[365157525,1749502254879,-151.0,0.00019178,2]
[365157526,1749502254888,-175.633844,0.00019178,2]
[365157527,1749502254898,-161.678678,0.00019178,2]
[365157528,1749502254907,-151.0,0.00019178,2]
[365157529,1749502254917,-175.633844,0.00019178,2]
[365157530,1749502254927,-161.678678,0.00019178,2]
[365157531,1749502254936,-151.0,0.00019178,2]
[365157532,1749502254946,-490.0,0.00019178,2]
[365157533,1749502254955,-175.633844,0.00019178,2]
[365157534,1749502254966,-161.678678,0.00019178,2]
[365157535,1749502254976,-151.0,0.00019178,2]
[365157536,1749502254986,-175.633844,0.00019178,2]
[365157537,1749502254996,-151.0,0.00019178,2]
[365157538,1749502255006,-175.633844,0.00019178,2]
[365157539,1749502255017,-490.0,0.00019178,2]
[365157540,1749502255026,-175.633844,0.00019178,2]
[365157541,1749502255036,-151.0,0.00019178,2]
[365157542,1749502255046,-151.0,0.00019178,2]
[365157543,1749502255055,-175.633844,0.00019178,2]
[365157544,1749502255065,-175.633844,0.00019178,2]
[365157545,1749502255074,-1769.47,0.00019178,2]
[365157546,1749502255084,-175.633844,0.00019178,2]
[365157547,1749502255094,-151.0,0.00019178,2]
[365157548,1749502255103,-175.633844,0.00019178,2]
[365157549,1749502255113,-151.0,0.00019178,2]
[365157550,1749502255122,-175.633844,0.00019178,2]
[365157551,1749502255132,-2369.3,0.00019178,2]
[365157552,1749502255142,-151.0,0.00019178,2]
[365157553,1749502255151,-175.633844,0.00019178,2]
[365157554,1749502255161,-175.633844,0.00019178,2]
[365157555,1749502255171,-151.0,0.00019178,2]
[365157556,1749502255180,-1934.32,0.00019178,2]
[365157557,1749502255190,-151.0,0.00019178,2]
[365157558,1749502255199,-151.0,0.00019178,2]
[365157559,1749502255209,-151.0,0.00019178,2]
[365157560,1749502255218,-2101.63,0.00019178,2]
[365157561,1749502255228,-490.0,0.00019178,2]
[365157562,1749502255237,-500.0,0.00019178,2]
[365157563,1749502255247,-490.0,0.00019178,2]
[365157564,1749502255257,-490.0,0.00019178,2]
[365157565,1749502255266,-500.0,0.00019178,2]
[365157566,1749502255276,-500.0,0.00019178,2]
[365157567,1749502255287,-500.0,0.00019178,2]
[365157568,1749502255298,-1444.86,0.00019178,2]
[365157569,1749502255308,-500.0,0.00019178,2]
[365157570,1749502255318,-500.0,0.00019178,2]
[365157571,1749502255329,-500.0,0.00019178,2]
[365157572,1749502255338,-500.0,0.00019178,2]
[365157573,1749502255348,-261.27,0.00019178,2]
[365157574,1749502255358,-1283.2,0.00019178,2]
[365157575,1749502255367,-490.0,0.00019178,2]
[365157576,1749502255378,-1319.28,0.00019178,2]
[365157577,1749502255387,-673.54,0.00019178,2]
[365157578,1749502255398,-536.28,0.00019178,2]
[365157579,1749502255408,-669.53,0.00019178,2]
[365157580,1749502255417,-5821.52,0.00019178,2]
[365157581,1749502255426,-490.0,0.00019178,2]
[365157582,1749502255435,-490.0,0.00019178,2]
[365157583,1749502255445,-480.0,0.00019178,2]
[365157584,1749502255455,-490.0,0.00019178,2]
[365157585,1749502255464,-504.2524399,0.00019178,2]
[365157586,1749502255474,-151.0,0.00019178,2]
[365157587,1749502255484,-717.69,0.00019178,2]
[365157588,1749502255494,-490.0,0.00019178,2]
[365157589,1749502255504,-490.0,0.00019178,2]
[365157590,1749502255516,-782.51,0.00019178,2]
[365157591,1749502255525,-1866.95957329,0.00019178,2]
[365157592,1749502255545,-886.72,0.00019178,2]
[365157593,1749502255566,-2444.18042671,0.00019178,2]
[365157594,1749502255576,-490.0,0.00019178,2]
[365157595,1749502255587,-480.0,0.00019178,2]
[365157596,1749502255597,-151.0,0.00019178,2]
[365157597,1749502255607,-456.55677369,0.00019178,2]
[365157598,1749502255618,-1587.03359657,0.00019178,2]
[365157600,1749502289717,409.05,0.00013699,2]
[365157601,1749502355103,21002.86,0.00017976,2]
[365157602,1749502359669,3568.38,0.00017984,2]
[365157603,1749502388030,1011.55,0.00017995,2]
[365157604,1749502388697,1400.0,0.00012876,2]
[365157605,1749502390341,1400.0,0.00014246,2]
[365157606,1749502391493,200.0,0.00017998,2]
[365157607,1749502392315,1400.0,0.00015616,2]
[365157608,1749502393913,1400.0,0.00016986,2]
[365157609,1749502521829,175.61,0.0001437,2]
[365157610,1749502526182,1076.95,0.00016045,2]
[365157611,1749502576647,1397.7,0.00017973,2]
[365157612,1749502578553,183.04,0.00016712,2]
[365157613,1749502607078,16900.85,0.00017968,2]
[365157614,1749502648318,1161.34,0.00017958,2]
[365157615,1749502652738,175.24,0.00017955,2]
[365157616,1749502671116,713.22,0.00017955,2]
[365157617,1749502713476,1000.0,0.00017957,2]
[365157618,1749502721350,250.0,0.00017951,2]
[365157619,1749502747024,500.0,0.00016164,2]
[365157620,1749502749174,500.0,0.00017534,2]
[365157621,1749502864626,9400.76,0.00017996,2]
[365157622,1749502891309,1078.6,0.00017999,2]
[365157623,1749503051745,204.0,0.00017542,2]
[365157624,1749503105227,367.53,0.00017995,2]
[365157625,1749503251656,200.0,0.00017988,2]
[365157626,1749503271530,3600.00386319,0.00024657,120]
[365157627,1749503354513,1350.31,0.00017978,2]
[365157628,1749503364055,406.26,0.00013699,2]
[365157630,1749503390761,200.0,0.0001796,2]
[365157643,1749503431480,-300.0,0.00018,2]
[365157644,1749503431490,-1200.0,0.00018,2]
[365157645,1749503431499,-1271.01883403,0.00018001,2]
[365157646,1749503431608,-11870.44903581,0.00018001,2]
[365157647,1749503431620,-2277.1,0.00018001,2]
[365157648,1749503431633,-10281.43213021,0.00018001,2]
[365157649,1749503431643,-2583.01,0.00018001,2]
[365157650,1749503431653,-520.58,0.00018006,2]
[365157651,1749503431663,-2254.48,0.00018081,2]
[365157652,1749503431673,-204.0,0.00018114,2]
[365157653,1749503431683,-300.0,0.00018129,2]
[365157654,1749503431693,-300.0,0.00018261,2]
[365157655,1749503431703,-1076.95,0.00018309,2]
[365157656,1749503431713,-1000.0,0.00018341,2]
[365157657,1749503431723,-151.0,0.00018341,2]
[365157658,1749503431734,-1957.856,0.00018341,2]
[365157659,1749503431743,-520.63085361,0.00018341,2]
[365157660,1749503431753,-207.4,0.00018341,2]
[365157661,1749503431763,-12415.19505811,0.00018352,2]
[365157662,1749503431772,-299.99,0.00018396,4]
[365157663,1749503431782,-795.61793833,0.00018396,2]
[365157664,1749503431808,-629.41951753,0.00018396,2]
[365157665,1749503431819,-207.0759204,0.00018523,2]
[365157666,1749503431830,-342.9240796,0.00018523,2]
[365157667,1749503431840,-73.92947118,0.00018524,2]
[365157668,1749503431852,-111.97052882,0.00018524,2]
[365157669,1749503431862,-235.08448118,0.00018524,2]
[365157670,1749503431873,-315.0,0.00018524,2]
[365157671,1749503431898,-449.90551882,0.00018524,2]
[365157672,1749503431908,-150.99,0.00018524,2]
[365157673,1749503431918,-9999.99,0.00018524,2]
[365157674,1749503431927,-700.0,0.000186,6]
[365157675,1749503431937,-166.66,0.00018624,2]
[365157676,1749503431947,-500.0,0.0001863,2]
[365157677,1749503431956,-1500.0,0.000187,6]
[365157678,1749503431967,-442.284145,0.00018794,2]
[365157679,1749503431977,-2300.0,0.000188,6]
[365157680,1749503431987,-1000.0,0.00018848,2]
[365157682,1749503431996,-13803.00408765,0.0001886,2]
[365157684,1749503432006,-3100.0,0.000189,6]
[365157686,1749503432016,-150.0,0.00018908,2]
[365157688,1749503432025,-150.0,0.00018918,2]
[365157690,1749503432035,-150.0,0.00018932,2]
[365157692,1749503432045,-150.0,0.00018935,2]
[365157693,1749503432054,-150.0,0.00018941,2]
[365157696,1749503432066,-150.0,0.00018945,2]
[365157697,1749503432076,-150.0,0.00018952,2]
[365157698,1749503432086,-150.0,0.00018961,2]
[365157699,1749503432096,-150.0,0.00018965,2]
[365157700,1749503432105,-150.0,0.00018982,2]
[365157701,1749503432115,-150.0,0.00018985,2]
[365157702,1749503432124,-150.0,0.00018986,2]
[365157703,1749503432134,-150.0,0.00018997,2]
[365157704,1749503432143,-150.0,0.00019001,2]
[365157705,1749503432152,-150.0,0.00019004,2]
[365157706,1749503432162,-150.0,0.00019015,2]
[365157707,1749503432172,-150.0,0.00019016,2]
[365157708,1749503432182,-150.0,0.00019024,2]
[365157709,1749503432191,-500.0,0.00019025,2]
[365157710,1749503432202,-200.0,0.00019025,2]
[365157711,1749503432212,-150.0,0.0001905,2]
[365157712,1749503432222,-2079.873,0.00019062,2]
[365157713,1749503432232,-150.0,0.00019065,2]
[365157714,1749503432241,-150.0,0.00019069,2]
[365157715,1749503432251,-610.84942245,0.0001907,2]
[365157716,1749503432261,-271.8718,0.0001907,2]
[365157717,1749503432271,-711.1444,0.0001907,2]
[365157718,1749503432280,-1920.4841,0.0001907,2]
[365157719,1749503432290,-150.0,0.00019078,2]
[365157720,1749503432299,-54.10989404,0.00019078,2]
[365157721,1749503432319,-117.38837176,0.00019078,2]
[365157722,1749503432329,-1817.50650472,0.00019078,2]
[365157723,1749503432347,-173.18981562,0.00019078,2]
[365157724,1749503432358,-457.46787097,0.00019078,2]
[365157725,1749503432375,-1128.91052903,0.00019078,2]
[365157726,1749503432385,-491.75146853,0.00019088,2]
[365157733,1749503437381,-201.58366076,0.000189,2]
[365157735,1749503437392,-201.58366061,0.00018934,2]
[365157736,1749503437405,-201.58366061,0.00018969,2]
[365157737,1749503437417,-201.58366061,0.00019003,2]
[365157738,1749503437426,-201.58366061,0.00019038,2]
[365157739,1749503437437,-932.9295639,0.0001906,2]
[365157740,1749503437448,-201.58366061,0.00019072,2]
[365157741,1749503437457,-500.0,0.00019077,2]
[365157742,1749503437467,-637.05565667,0.00019077,2]
[365157743,1749503437718,-500.0,0.00019077,2]
[365157744,1749503437729,-163.43807664,0.00019077,2]
[365157745,1749503437739,-119.09795381,0.00019088,2]
[365157746,1749503437750,-150.0,0.0001909,2]
[365157747,1749503437760,-150.0,0.00019094,2]
[365157748,1749503437770,-1518.406,0.00019097,2]
[365157749,1749503437784,-610.84942234,0.00019105,2]
[365157750,1749503437794,-150.0,0.00019106,2]
[365157751,1749503437804,-201.58366061,0.00019107,2]
[365157752,1749503437818,-150.0,0.00019107,2]
[365157753,1749503437830,-150.0,0.00019117,2]
[365157754,1749503437840,-150.0,0.00019117,2]
[365157755,1749503437850,-805.0,0.00019122,2]
[365157756,1749503437860,-2021.443,0.00019123,2]
[365157757,1749503437870,-1308.862,0.00019123,2]
[365157758,1749503437880,-589.0,0.00019123,2]
[365157759,1749503437890,-557.0,0.00019123,2]
[365157761,1749503437900,-943.483,0.00019123,2]
[365157763,1749503437910,-1255.0,0.00019123,2]
[365157764,1749503437920,-200.163,0.00019123,2]
[365157765,1749503437931,-7063.0,0.00019123,2]
[365157766,1749503437941,-853.0,0.00019123,2]
[365157767,1749503437951,-129.59324706,0.00019123,2]
[365157768,1749503437986,-753.40675294,0.00019123,2]
[365157769,1749503437995,-610.84942234,0.00019123,2]
[365157770,1749503438006,-150.0,0.00019126,2]
[365157771,1749503438016,-150.0,0.0001914,2]
[365157772,1749503438026,-610.84942234,0.00019141,2]
[365157773,1749503438036,-201.58366061,0.00019141,2]
[365157774,1749503438046,-113.31074277,0.0001915,2]
[365157775,1749503438101,-38.90925723,0.0001915,2]
[365157777,1749503438112,-152.22,0.0001915,2]
[365157779,1749503438122,-152.22,0.0001915,2]
[365157781,1749503438132,-152.22,0.0001915,2]
[365157783,1749503438142,-125.09002066,0.00019158,2]
[365157785,1749503438159,-426.07968813,0.00019158,2]
[365157788,1749503438172,-59.67971355,0.00019158,2]
[365157790,1749503438182,-350.0,0.00019159,2]
[365157792,1749503438192,-300.0,0.00019159,2]
[365157794,1749503438202,-666.0,0.00019159,2]
[365157796,1749503438212,-1845.42558727,0.0001916,3]
[365157798,1749503438221,-2109.26851248,0.0001916,3]
[365157942,1749503439661,-4084.0,0.00019123,2]
[365157944,1749503439671,-70807.32249786,0.0001916,3]
[365157952,1749503439736,-15828.58382208,0.0001916,3]
[365157954,1749503439748,-6133.12435926,0.0001916,3]
[365157956,1749503439759,-1231.37837027,0.0001916,3]
[365157959,1749503439770,-9481.33175742,0.0001916,3]
[365157961,1749503439781,-26684.9485944,0.0001916,3]
[365157963,1749503439792,-253.09871949,0.0001916,3]
[365157971,1749503439866,-380395.56505443,0.0001916,3]
[365157973,1749503439875,-216454.20916863,0.0001916,4]
[365157975,1749503439887,-805.712,0.0001916,4]
[365157985,1749503439979,-376.35073405,0.0001916,4]
[365158129,1749503442459,-217.0,0.00018114,2]
[365158130,1749503442469,-42.741,0.0001916,4]
[365158131,1749503442481,-447.79289822,0.0001916,4]
[365158132,1749503442641,-219693.1336924,0.0001916,4]
[365158133,1749503442716,-12954.20626426,0.0001916,4]
[365158138,1749503445614,-2975.86403999,0.0001916,4]
[365158139,1749503445796,-255.06862186,0.0001916,4]
[365158140,1749503445807,-5872.08278114,0.0001916,4]
[365158141,1749503445820,-1095.186,0.0001916,4]
[365158142,1749503445840,-1113.61558534,0.0001916,4]
[365158143,1749503445955,-73195.50338691,0.0001916,4]
[365158161,1749503457065,500.0,0.00016164,2]
[365158162,1749503465709,151.0,0.00017481,2]
[365158163,1749503482076,151.0,0.00017781,2]
[365158164,1749503498523,151.0,0.00017925,2]
[365158165,1749503510045,1107.42,0.00016244,2]
[365158166,1749503514871,151.0,0.00017989,2]
[365158167,1749503562407,150.0,0.00018,2]
[365158168,1749503564771,1000.0,0.00013972,2]
[365158169,1749503566096,1000.0,0.00015342,2]
[365158170,1749503567671,1000.0,0.00016712,2]
[365158171,1749503569246,1000.0,0.00017808,2]
[365158172,1749503612078,151.0,0.00017241,2]
[365158173,1749503771596,205.0,0.00017114,2]
[365158174,1749503797071,668.849584,0.00017922,2]
[365158175,1749503800567,14668.82787338,0.00017935,2]
[365158176,1749503926412,500.0,0.00016164,2]
[365158177,1749503928166,500.0,0.00017534,2]
[365158178,1749503958740,1219.8,0.00017989,2]
[365158179,1749503999266,619.77014484,0.00017992,2]
[365158180,1749504041664,200.0,0.00017114,2]
[365158181,1749504093553,9751.09,0.00017976,2]
[365158182,1749504108524,426.51997789,0.00018,2]
[365158183,1749504110054,1063.85,0.00017987,2]
[365158184,1749504131852,205.0,0.00017414,2]
[365158185,1749504205051,475.75,0.00017987,2]
[365158186,1749504234070,170.95368412,0.00017935,2]
[365158187,1749504254719,1536.2387374,0.0002,120]
[365158188,1749504264417,1000.0,0.00017972,2]
[365158189,1749504354194,2393.62,0.00017994,2]
[365158191,1749504408823,440.37,0.00013699,2]
[365158192,1749504427580,1517.64,0.000153,2]
[365158193,1749504430913,591.66662995,0.00015,2]
[365158194,1749504440305,2063.72800914,0.0001305,2]
[365158196,1749504458196,839.23,0.00017998,2]
[365158197,1749504491644,205.0,0.00017666,2]
[365158198,1749504518658,492.8133062,0.000154,2]
[365158201,1749504538667,200.0,0.0001799,2]
[365158202,1749504541224,1228.28,0.00016073,2]
[365158203,1749504573766,170.95368412,0.00017912,2]
[365158211,1749504615064,170.5,0.00017978,2]
[365158229,1749504631721,-6336.64786472,0.00018,2]
[365158230,1749504631731,-1200.0,0.00018011,2]
[365158231,1749504631741,-1119.45,0.00018012,2]
[365158232,1749504631750,-300.0,0.00018012,2]
[365158233,1749504631760,-600.0,0.00018012,4]
[365158234,1749504631770,-175.82550319,0.00018013,2]
[365158235,1749504631779,-150.0,0.00018028,7]
[365158236,1749504631789,-160.77,0.00018035,2]
[365158237,1749504631800,-1048.64,0.00018036,2]
[365158238,1749504631809,-250.0,0.00018038,2]
[365158239,1749504631819,-3294.86,0.00018119,2]
[365158240,1749504631829,-1228.28,0.00018336,2]
[365158241,1749504631839,-423.70975169,0.00018489,2]
[365158242,1749504631848,-151.0,0.00018489,2]
[365158243,1749504631858,-327.36560831,0.00018489,2]
[365158244,1749504631868,-500.0,0.00018489,2]
[365158245,1749504631879,-460.91101826,0.00018489,2]
[365158246,1749504631888,-207.4,0.00018489,2]
[365158247,1749504631898,-300.0,0.00018499,2]
[365158248,1749504631907,-3274.47299263,0.000185,2]
[365158249,1749504631919,-260.25,0.000185,2]
[365158250,1749504631931,-277.215,0.000185,2]
[365158251,1749504631942,-28823.49509395,0.000185,2]
[365158252,1749504631951,-167.09,0.00018586,2]
[365158253,1749504631961,-600.0,0.000186,6]
[365158254,1749504631970,-122.89588234,0.0001863,2]
[365158255,1749504631982,-377.10411766,0.0001863,2]
[365158256,1749504631992,-250.0,0.00018655,2]
[365158257,1749504632003,-318.05229673,0.000187,6]
[365158269,1749504632497,-981.94770327,0.000187,6]
[365158271,1749504632507,-415.859465,0.00018794,2]
[365158273,1749504632517,-1700.97895279,0.000188,6]
[365158276,1749504632529,-299.02104721,0.000188,6]
[365158278,1749504632539,-2700.0,0.000189,6]
[365158280,1749504632553,-1000.0,0.0001891,2]
[365158282,1749504632563,-150.0,0.00018912,2]
[365158283,1749504632572,-158.91123783,0.00018933,2]
[365158286,1749504632582,-205.0,0.00018949,3]
[365158288,1749504632591,-1278.578496,0.00018958,2]
[365158289,1749504632601,-1000.0,0.00018974,2]
[365158291,1749504632610,-150.0,0.00018976,2]
[365158292,1749504632619,-1000.0,0.00018976,2]
[365158293,1749504632629,-1000.0,0.00018998,2]
[365158294,1749504632639,-250.0,0.00019,2]
[365158295,1749504632649,-307.63133014,0.00019005,2]
[365158296,1749504632658,-150.0,0.00019008,2]
[365158297,1749504632668,-1000.0,0.00019009,2]
[365158298,1749504632678,-2000.0,0.0001901,2]
[365158299,1749504632687,-500.0,0.00019015,2]
[365158300,1749504632697,-200.0,0.00019015,2]
[365158301,1749504632707,-1000.0,0.00019019,2]
[365158302,1749504632716,-150.0,0.00019022,2]
[365158303,1749504632726,-150.0,0.00019026,2]
[365158304,1749504632736,-150.0,0.00019041,2]
[365158305,1749504632745,-150.0,0.00019046,2]
[365158306,1749504632755,-150.0,0.00019047,2]
[365158307,1749504632765,-1000.0,0.00019048,2]
[365158308,1749504632774,-1000.0,0.0001905,2]
[365158309,1749504632784,-161.34278849,0.0001906,2]
[365158310,1749504632799,-150.0,0.00019065,2]
[365158311,1749504632809,-159.81228007,0.00019066,2]
[365158312,1749504632819,-171.49826575,0.00019066,2]
[365158313,1749504632829,-215.69762745,0.00019066,2]
[365158314,1749504632839,-450.95166897,0.0001907,2]
[365158315,1749504632850,-370.98785413,0.0001907,2]
[365158316,1749504632891,-1153.8479346,0.0001907,2]
[365158317,1749504632903,-4241.96221224,0.0001907,2]
[365158318,1749504632913,-728.4966,0.0001907,2]
[365158319,1749504632923,-1000.0,0.0001907,2]
[365158320,1749504632932,-1592.4418,0.0001907,2]
[365158321,1749504632942,-1000.0,0.00019073,2]
[365158322,1749504632952,-379.22823273,0.00019078,2]
[365158323,1749504632962,-1923.79557192,0.00019078,2]
[365158324,1749504632972,-450.95166881,0.00019088,2]
[365158325,1749504632981,-1000.0,0.0001909,2]
[365158326,1749504632991,-150.0,0.00019093,2]
[365158327,1749504633004,-1000.0,0.00019094,2]
[365158328,1749504633014,-1214.725,0.00019098,2]
[365158329,1749504633024,-2000.0,0.000191,2]
[365158330,1749504633034,-450.95166881,0.00019105,2]
[365158331,1749504633048,-150.0,0.00019107,2]
[365158332,1749504633059,-1000.0,0.00019111,2]
[365158333,1749504633073,-1000.0,0.00019115,2]
[365158334,1749504633086,-150.0,0.00019116,2]
[365158335,1749504633098,-150.0,0.00019117,2]
[365158336,1749504633110,-2000.0,0.0001912,2]
[365158337,1749504633121,-450.95166881,0.00019123,2]
[365158338,1749504633132,-1000.0,0.0001913,2]
[365158339,1749504633145,-2000.0,0.0001913,2]
[365158340,1749504633157,-1000.0,0.00019134,2]
[365158341,1749504633170,-450.95166881,0.00019141,2]
[365158342,1749504633181,-150.0,0.00019142,2]
[365158343,1749504633191,-833.29909032,0.00019143,2]
[365158344,1749504633201,-5766.79800088,0.00019151,2]
[365158345,1749504633211,-1923.79557183,0.00019158,2]
[365158346,1749504633222,-450.95166881,0.00019158,2]
[365158347,1749504633232,-1000.0,0.00019159,2]
[365158348,1749504633242,-922.71279363,0.0001916,3]
[365158349,1749504633252,-10606.38302467,0.0001916,3]
[365158361,1749504638370,-286.48545815,0.00019159,2]
[365158363,1749504638380,-139.43691712,0.00019159,2]
[365158365,1749504638391,-248.69353252,0.00019159,2]
[365158367,1749504638401,-501.39163998,0.00019159,2]